lending/lending_fUSD_20240411
["ID","MTS","AMOUNT","RATE_DAILY","PERIOD"]
[322146540,1712849447371,-904.75,0.00032876,2]
[322146541,1712849447380,-1546.3,0.00032876,2]
[322146542,1712849447390,-953.94,0.00032876,2]
[322146543,1712849447399,-500.0,0.00032876,2]
[322146544,1712849447592,-653.69,0.00032876,2]
[322146545,1712849447607,-500.0,0.00032876,2]
[322146546,1712849447617,-1542.88,0.00032876,2]
[322146547,1712849447627,-500.0,0.00032876,2]
[322146548,1712849447636,-500.0,0.00032876,2]
[322146549,1712849447646,-750.14,0.00032876,2]
[322146550,1712849447656,-500.0,0.00032876,2]
[322146551,1712849447665,-500.0,0.00032876,2]
[322146552,1712849447675,-1553.85,0.00032876,2]
[322146553,1712849447686,-516.74,0.00032876,2]
[322146554,1712849447695,-1327.8,0.00032876,2]
[322146555,1712849447705,-1043.16,0.00032876,2]
[322146556,1712849447714,-527.58,0.00032876,2]
[322146557,1712849447724,-923.75,0.00032876,2]
[322146558,1712849447733,-1219.84,0.00032876,2]
[322146559,1712849447747,-1704.64,0.00032876,2]
[322146560,1712849447757,-500.0,0.00032876,2]
[322146561,1712849447766,-500.0,0.00032876,2]
[322146562,1712849447776,-500.0,0.00032876,2]
[322146563,1712849447786,-500.0,0.00032876,2]
[322146564,1712849447795,-1277.14,0.00032876,2]
[322146565,1712849447804,-506.97,0.00032876,2]
[322146566,1712849447813,-733.37,0.00032876,2]
[322146567,1712849447824,-500.0,0.00032876,2]
[322146568,1712849447833,-500.0,0.00032876,2]
[322146569,1712849447843,-500.0,0.00032876,2]
[322146570,1712849447853,-527.92,0.00032876,2]
[322146571,1712849447865,-2364.89,0.00032876,2]
[322146572,1712849447876,-846.63,0.00032876,2]
[322146573,1712849447887,-1428.64,0.00032876,2]
[322146574,1712849447897,-538.0810889,0.00032876,2]
[322146575,1712849447907,-500.0,0.00032876,2]
[322146576,1712849447916,-500.0,0.00032876,2]
[322146577,1712849447927,-500.0,0.00032876,2]
[322146578,1712849447937,-566.4,0.00032876,2]
[322146579,1712849447947,-500.0,0.00032876,2]
[322146580,1712849447959,-2024.51,0.00032876,2]
[322146581,1712849447969,-500.0,0.00032876,2]
[322146582,1712849447980,-500.0,0.00032876,2]
[322146583,1712849447990,-500.0,0.00032876,2]
[322146584,1712849448000,-500.0,0.00032876,2]
[322146585,1712849448010,-500.0,0.00032876,2]
[322146586,1712849448019,-1493.1,0.00032876,2]
[322146587,1712849448029,-500.0,0.00032876,2]
[322146588,1712849448039,-1224.26,0.00032876,2]
[322146589,1712849448048,-500.0,0.00032876,2]
[322146590,1712849448057,-500.0,0.00032876,2]
[322146591,1712849448067,-500.0,0.00032876,2]
[322146592,1712849448076,-500.0,0.00032876,2]
[322146593,1712849448086,-500.0,0.00032876,2]
[322146594,1712849448097,-1837.04,0.00032876,2]
[322146595,1712849448107,-591.8,0.00032876,2]
[322146596,1712849448117,-500.0,0.00032876,2]
[322146597,1712849448129,-500.0,0.00032876,2]
[322146598,1712849448140,-1809.77,0.00032876,2]
[322146599,1712849448152,-836.26,0.00032876,2]
[322146600,1712849448163,-46548.25,0.00032876,2]
[322146601,1712849448174,-497.42069683,0.00032876,2]
[322146602,1712849448184,-500.0,0.00032876,2]
[322146603,1712849448193,-500.0,0.00032876,2]
[322146604,1712849448203,-1055.04,0.00032876,2]
[322146605,1712849448214,-500.0,0.00032876,2]
[322146606,1712849448224,-500.0,0.00032876,2]
[322146607,1712849448234,-1808.7,0.00032876,2]
[322146608,1712849448243,-582.53,0.00032876,2]
[322146609,1712849448254,-500.0,0.00032876,2]
[322146610,1712849448264,-500.0,0.00032876,2]
[322146611,1712849448273,-1696.17,0.00032876,2]
[322146612,1712849448283,-500.0,0.00032876,2]
[322146613,1712849448293,-500.0,0.00032876,2]
[322146614,1712849448304,-500.0,0.00032876,2]
[322146615,1712849448315,-500.0,0.00032876,2]
[322146616,1712849448325,-500.0,0.00032876,2]
[322146617,1712849448335,-517.28264215,0.00032876,2]
[322146618,1712849448345,-731.41,0.00032876,2]
[322146619,1712849448354,-500.0,0.00032876,2]
[322146620,1712849448364,-1455.66,0.00032876,2]
[322146621,1712849448374,-500.0,0.00032876,2]
[322146622,1712849448384,-500.0,0.00032876,2]
[322146623,1712849448394,-537.87,0.00032876,2]
[322146624,1712849448404,-500.0,0.00032876,2]
[322146625,1712849448418,-12991.78,0.00032876,2]
[322146626,1712849448428,-659.71,0.00032876,2]
[322146627,1712849448437,-500.0,0.00032876,2]
[322146628,1712849448447,-1855.78,0.00032876,2]
[322146629,1712849448459,-1021.07,0.00032876,2]
[322146630,1712849448468,-500.0,0.00032876,2]
[322146631,1712849448478,-500.0,0.00032876,2]
[322146632,1712849448487,-1231.3,0.00032876,2]
[322146633,1712849448498,-500.0,0.00032876,2]
[322146634,1712849448510,-500.0,0.00032876,2]
[322146635,1712849448520,-500.0,0.00032876,2]
[322146636,1712849448529,-500.0,0.00032876,2]
[322146637,1712849448539,-500.0,0.00032876,2]
[322146638,1712849448549,-2325.68,0.00032876,2]
[322146639,1712849448559,-1347.08,0.00032876,2]
[322146640,1712849448568,-500.0,0.00032876,2]
[322146641,1712849448578,-500.0,0.00032876,2]
[322146642,1712849448588,-599.28,0.00032876,2]
[322146643,1712849448597,-896.7,0.00032876,2]
[322146644,1712849448607,-500.0,0.00032876,2]
[322146645,1712849448617,-500.0,0.00032876,2]
[322146646,1712849448627,-2297.93,0.00032876,2]
[322146647,1712849448636,-1295.85,0.00032876,2]
[322146648,1712849448646,-500.0,0.00032876,2]
[322146649,1712849448656,-500.0,0.00032876,2]
[322146650,1712849448666,-500.0,0.00032876,2]
[322146651,1712849448675,-500.0,0.00032876,2]
[322146652,1712849448686,-1423.3,0.00032876,2]
[322146653,1712849448696,-1281.9,0.00032876,2]
[322146654,1712849448705,-1783.79,0.00032876,2]
[322146655,1712849448716,-500.0,0.00032876,2]
[322146656,1712849448726,-500.0,0.00032876,2]
[322146657,1712849448737,-500.0,0.00032876,2]
[322146658,1712849448747,-500.0,0.00032876,2]
[322146659,1712849448758,-1616.75,0.00032876,2]
[322146660,1712849448767,-4450.12,0.00032876,2]
[322146661,1712849448776,-790.09,0.00032876,2]
[322146662,1712849448785,-524.14,0.00032876,2]
[322146663,1712849448795,-500.0,0.00032876,2]
[322146664,1712849448804,-500.0,0.00032876,2]
[322146665,1712849448813,-500.0,0.00032876,2]
[322146666,1712849448822,-500.0,0.00032876,2]
[322146667,1712849448832,-842.45,0.00032876,2]
[322146668,1712849448841,-500.0,0.00032876,2]
[322146669,1712849448851,-500.0,0.00032876,2]
[322146670,1712849448861,-932.76,0.00032876,2]
[322146671,1712849448871,-500.0,0.00032876,2]
[322146672,1712849448881,-1886.04,0.00032876,2]
[322146673,1712849448892,-500.0,0.00032876,2]
[322146674,1712849448902,-500.0,0.00032876,2]
[322146675,1712849448912,-625.77427169,0.00032876,2]
[322146676,1712849448923,-29165.75,0.00032876,2]
[322146677,1712849448933,-1321.55,0.00032876,2]
[322146678,1712849448943,-500.0,0.00032876,2]
[322146679,1712849448953,-500.0,0.00032876,2]
[322146680,1712849448963,-792.37,0.00032876,2]
[322146681,1712849448973,-500.0,0.00032876,2]
[322146682,1712849448983,-2015.55,0.00032876,2]
[322146683,1712849448993,-500.0,0.00032876,2]
[322146684,1712849449005,-500.0,0.00032876,2]
[322146685,1712849449014,-500.0,0.00032876,2]
[322146686,1712849449024,-1636.5,0.00032876,2]
[322146687,1712849449034,-500.0,0.00032876,2]
[322146688,1712849449044,-500.0,0.00032876,2]
[322146689,1712849449053,-500.0,0.00032876,2]
[322146690,1712849449064,-1333.93,0.00032876,2]
[322146691,1712849449075,-1320.9,0.00032876,2]
[322146692,1712849449084,-3206.96,0.00032876,2]
[322146693,1712849449096,-500.0,0.00032876,2]
[322146694,1712849449106,-500.0,0.00032876,2]
[322146695,1712849449116,-500.0,0.00032876,2]
[322146696,1712849449126,-1308.43,0.00032876,2]
[322146697,1712849449137,-500.0,0.00032876,2]
[322146698,1712849449146,-1698.54,0.00032876,2]
[322146699,1712849449155,-500.0,0.00032876,2]
[322146700,1712849449166,-500.0,0.00032876,2]
[322146701,1712849449176,-526.75,0.00032876,2]
[322146702,1712849449185,-500.0,0.00032876,2]
[322146703,1712849449195,-532.64,0.00032876,2]
[322146704,1712849449204,-737.55,0.00032876,2]
[322146705,1712849449214,-500.0,0.00032876,2]
[322146706,1712849449223,-1076.72,0.00032876,2]
[322146707,1712849449233,-566.11,0.00032876,2]
[322146708,1712849449242,-4216.35,0.00032876,2]
[322146709,1712849449253,-500.0,0.00032876,2]
[322146710,1712849449262,-1841.24,0.00032876,2]
[322146711,1712849449272,-500.0,0.00032876,2]
[322146712,1712849449281,-500.0,0.00032876,2]
[322146713,1712849449291,-500.0,0.00032876,2]
[322146714,1712849449300,-500.0,0.00032876,2]
[322146715,1712849449309,-888.09,0.00032876,2]
[322146716,1712849449319,-500.0,0.00032876,2]
[322146717,1712849449328,-295.52067879,0.00032876,2]
[322146718,1712849449338,-1376.4,0.00032876,2]
[322146719,1712849449347,-1490.47,0.00032876,2]
[322146720,1712849449357,-500.0,0.00032876,2]
[322146721,1712849449367,-609.32,0.00032876,2]
[322146722,1712849449376,-500.0,0.00032876,2]
[322146723,1712849449386,-686.6,0.00032876,2]
[322146724,1712849449395,-574.11641601,0.00032876,2]
[322146725,1712849449405,-2358.52,0.00032876,2]
[322146726,1712849449417,-500.0,0.00032876,2]
[322146727,1712849449429,-500.0,0.00032876,2]
[322146728,1712849449440,-500.0,0.00032876,2]
[322146729,1712849449450,-500.0,0.00032876,2]
[322146730,1712849449460,-500.0,0.00032876,2]
[322146731,1712849449469,-500.0,0.00032876,2]
[322146732,1712849449479,-2425.9,0.00032876,2]
[322146733,1712849449488,-500.0,0.00032876,2]
[322146734,1712849449499,-500.0,0.00032876,2]
[322146735,1712849449510,-535.92,0.00032876,2]
[322146736,1712849449519,-1222.38,0.00032876,2]
[322146737,1712849449529,-572.10658883,0.00032876,2]
[322146738,1712849449538,-784.75,0.00032876,2]
[322146739,1712849449547,-500.0,0.00032876,2]
[322146740,1712849449557,-500.0,0.00032876,2]
[322146741,1712849449568,-500.0,0.00032876,2]
[322146742,1712849449578,-615.88968845,0.00032876,2]
[322146743,1712849449588,-1731.51,0.00032876,2]
[322146744,1712849449597,-500.0,0.00032876,2]
[322146745,1712849449607,-1447.28,0.00032876,2]
[322146746,1712849449617,-500.0,0.00032876,2]
[322146747,1712849449626,-500.0,0.00032876,2]
[322146748,1712849449635,-500.0,0.00032876,2]
[322146749,1712849449645,-1258.23,0.00032876,2]
[322146750,1712849449654,-2363.92,0.00032876,2]
[322146751,1712849449663,-506.15,0.00032876,2]
[322146752,1712849449673,-638.39,0.00032876,2]
[322146753,1712849449682,-500.0,0.00032876,2]
[322146754,1712849449692,-500.0,0.00032876,2]
[322146755,1712849449701,-1076.22,0.00032876,2]
[322146756,1712849449710,-571.37,0.00032876,2]
[322146757,1712849449720,-510.39,0.00032876,2]
[322146758,1712849449729,-500.0,0.00032876,2]
[322146759,1712849449739,-500.0,0.00032876,2]
[322146760,1712849449748,-510.2822499,0.00032876,2]
[322146761,1712849449758,-500.0,0.00032876,2]
[322146762,1712849449767,-589.44,0.00032876,2]
[322146763,1712849449777,-1591.47,0.00032876,2]
[322146764,1712849449787,-1058.88,0.00032876,2]
[322146765,1712849449796,-500.0,0.00032876,2]
[322146766,1712849449805,-500.0,0.00032876,2]
[322146767,1712849449815,-500.0,0.00032876,2]
[322146768,1712849449824,-2231.06,0.00032876,2]
[322146769,1712849449834,-2445.42,0.00032876,2]
[322146770,1712849449843,-1620.54,0.00032876,2]
[322146771,1712849449853,-500.0,0.00032876,2]
[322146772,1712849449862,-500.0,0.00032876,2]
[322146773,1712849449871,-508.48,0.00032876,2]
[322146774,1712849449881,-500.0,0.00032876,2]
[322146775,1712849449890,-500.0,0.00032876,2]
[322146776,1712849449900,-500.0,0.00032876,2]
[322146777,1712849449909,-500.0,0.00032876,2]
[322146778,1712849449919,-1228.57,0.00032876,2]
[322146779,1712849449928,-500.0,0.00032876,2]
[322146780,1712849449938,-500.0,0.00032876,2]
[322146781,1712849449947,-762.06,0.00032876,2]
[322146782,1712849449957,-500.0,0.00032876,2]
[322146783,1712849449966,-500.0,0.00032876,2]
[322146784,1712849449976,-500.0,0.00032876,2]
[322146785,1712849449985,-518.28,0.00032876,2]
[322146786,1712849449996,-500.0,0.00032876,2]
[322146787,1712849450009,-453.79496072,0.00032876,2]
[322146788,1712849450018,-500.0,0.00032876,2]
[322146789,1712849450028,-500.0,0.00032876,2]
[322146790,1712849450106,-500.0,0.00032876,2]
[322146791,1712849450117,-500.0,0.00032876,2]
[322146792,1712849450127,-500.0,0.00032876,2]
[322146793,1712849450137,-586.34,0.00032876,2]
[322146794,1712849450146,-253.11557555,0.00032876,2]
[322146795,1712849450156,-2677.82,0.00032876,2]
[322146796,1712849450165,-500.0,0.00032876,2]
[322146797,1712849450174,-1111.31,0.00032876,2]
[322146798,1712849450184,-500.0,0.00032876,2]
[322146799,1712849450193,-500.0,0.00032876,2]
[322146800,1712849450202,-500.0,0.00032876,2]
[322146801,1712849450212,-500.0,0.00032876,2]
[322146802,1712849450222,-1471.78,0.00032876,2]
[322146803,1712849450231,-500.0,0.00032876,2]
[322146804,1712849450241,-500.0,0.00032876,2]
[322146805,1712849450251,-500.0,0.00032876,2]
[322146806,1712849450261,-500.0,0.00032876,2]
[322146807,1712849450271,-1632.57,0.00032876,2]
[322146808,1712849450281,-500.0,0.00032876,2]
[322146809,1712849450290,-225.34962823,0.00032876,2]
[322146810,1712849450303,-1306.11,0.00032876,2]
[322146811,1712849450312,-3118.23,0.00032876,2]
[322146812,1712849450322,-521.4,0.00032876,2]
[322146813,1712849450331,-500.0,0.00032876,2]
[322146814,1712849450346,-682.34,0.00032876,2]
[322146815,1712849450356,-500.0,0.00032876,2]
[322146816,1712849450365,-500.0,0.00032876,2]
[322146817,1712849450375,-500.0,0.00032876,2]
[322146818,1712849450384,-500.0,0.00032876,2]
[322146819,1712849450394,-500.0,0.00032876,2]
[322146820,1712849450403,-500.0,0.00032876,2]
[322146821,1712849450416,-500.0,0.00032876,2]
[322146822,1712849450426,-500.0,0.00032876,2]
[322146823,1712849450435,-500.0,0.00032876,2]
[322146824,1712849450446,-500.0,0.00032876,2]
[322146825,1712849450457,-8729.49569848,0.00032876,2]
[322146826,1712849451071,-319.6045,0.00032876,2]
[322146827,1712849451083,-2956.01980152,0.00032876,2]
[322146828,1712849451094,-520.98007992,0.00032876,2]
[322146829,1712849451104,-500.0,0.00032876,2]
[322146830,1712849451115,-500.0,0.00032876,2]
[322146831,1712849451124,-500.0,0.00032876,2]
[322146832,1712849451133,-3971.38,0.00032876,2]
[322146833,1712849451142,-500.0,0.00032876,2]
[322146834,1712849451152,-500.0,0.00032876,2]
[322146835,1712849451163,-979.41,0.00032876,2]
[322146836,1712849451172,-1139.45,0.00032876,2]
[322146837,1712849451183,-500.0,0.00032876,2]
[322146838,1712849451193,-500.0,0.00032876,2]
[322146839,1712849451203,-447.08760938,0.00032876,2]
[322146840,1712849451244,-52.91239062,0.00032876,2]
[322146841,1712849451259,-256.70939542,0.00032876,2]
[322146842,1712849451274,-243.29060458,0.00032876,2]
[322146843,1712849451285,-500.0,0.00032876,2]
[322146844,1712849451296,-659.89532405,0.00032876,2]
[322146845,1712849452192,-3451.5393,0.00032876,2]
[322146846,1712849452209,-2074.60153014,0.00032876,2]
[322146847,1712849452221,-1306.38384581,0.00032876,2]
[322146848,1712849452231,-1393.53,0.00032876,2]
[322146849,1712849452242,-646.21,0.00032876,2]
[322146850,1712849452254,-4068.22,0.00032876,2]
[322146851,1712849452265,-500.0,0.00032876,2]
[322146852,1712849452287,-1102.47351886,0.00032876,2]
[322146853,1712849452303,-1678.52648114,0.00032876,2]
[322146854,1712849452313,-500.0,0.00032876,2]
[322146855,1712849452325,-500.0,0.00032876,2]
[322146856,1712849452335,-500.0,0.00032876,2]
[322146857,1712849452346,-3011.22541494,0.00032876,2]
[322146858,1712849452359,-144.56458506,0.00032876,2]
[322146859,1712849452369,-500.0,0.00032876,2]
[322146860,1712849452380,-500.0,0.00032876,2]
[322146861,1712849452390,-4256.35237169,0.00032876,2]
[322146862,1712849452402,-431.73961927,0.00032876,2]
[322146863,1712849452463,-658.35,0.00032876,2]
[322146864,1712849452519,-2670.08800904,0.00032876,2]
[322146865,1712849452529,-983.61,0.00032876,2]
[322146866,1712849452539,-1173.43,0.00032876,2]
[322146867,1712849452549,-2791.54,0.00032876,2]
[322146868,1712849452559,-500.0,0.00032876,2]
[322146869,1712849452569,-6109.3,0.00032876,2]
[322146870,1712849452580,-500.0,0.00032876,2]
[322146871,1712849452590,-1278.81,0.00032876,2]
[322146872,1712849452600,-500.0,0.00032876,2]
[322146873,1712849452610,-2031.24,0.00032876,2]
[322146874,1712849452620,-572.37,0.00032876,2]
[322146875,1712849452630,-1159.1,0.00032876,2]
[322146876,1712849452641,-500.0,0.00032876,2]
[322146877,1712849452651,-17056.65,0.00032876,2]
[322146878,1712849452661,-1254.57,0.00032876,2]
[322146879,1712849452671,-1317.02,0.00032876,2]
[322146880,1712849452681,-500.0,0.00032876,2]
[322146881,1712849452690,-500.0,0.00032876,2]
[322146882,1712849452701,-9844.3,0.00032876,2]
[322146883,1712849452710,-1707.89,0.00032876,2]
[322146884,1712849452720,-500.0,0.00032876,2]
[322146885,1712849452731,-1491.4,0.00032876,2]
[322146886,1712849452741,-500.0,0.00032876,2]
[322146887,1712849452752,-581.4822258,0.00032876,2]
[322146888,1712849452762,-42539.44613488,0.00032876,2]
[322146889,1712849452776,-5993.90368855,0.00032876,2]
[322146890,1712849452789,-1301.59073969,0.00032876,2]
[322146891,1712849453596,-154.31,0.00032865,2]
[322146892,1712849453607,-335.07452112,0.00032876,2]
[322146893,1712849453620,-7593.13393878,0.00032876,2]
[322146894,1712849453637,-529.32123556,0.00032876,2]
[322146895,1712849453649,-500.0,0.00032876,2]
[322146896,1712849453806,-742.3387232,0.00032876,2]
[322146897,1712849453820,-10736.48101822,0.00032876,2]
[322146898,1712849453829,-539.64,0.00032876,2]
[322146899,1712849453839,-500.0,0.00032876,2]
[322146900,1712849453849,-5189.62793012,0.00032876,2]
[322146901,1712849453862,-1393.042,0.00032876,2]
[322146902,1712849453874,-585.22668101,0.00032876,2]
[322146903,1712849453888,-1533.33338887,0.00032876,2]
[322146904,1712849453899,-500.0,0.00032876,2]
[322146905,1712849453909,-950.82,0.00032876,2]
[322146906,1712849453920,-500.0,0.00032876,2]
[322146907,1712849453930,-1879.32,0.00032876,2]
[322146908,1712849453940,-1220.39,0.00032876,2]
[322146909,1712849453950,-500.0,0.00032876,2]
[322146910,1712849453959,-3906.52,0.00032876,2]
[322146911,1712849453970,-500.0,0.00032876,2]
[322146912,1712849453980,-500.0,0.00032876,2]
[322146913,1712849453990,-500.0,0.00032876,2]
[322146914,1712849454006,-5254.12,0.00032876,2]
[322146915,1712849454015,-55.99661113,0.00032876,2]
[322146916,1712849454030,-322.51994525,0.00032876,2]
[322146917,1712849454050,-121.48344362,0.00032876,2]
[322146918,1712849454060,-432.61048301,0.00032876,2]
[322146919,1712849454333,-24524.17951699,0.00032876,2]
[322146920,1712849454362,-500.0,0.00032876,2]
[322146921,1712849454372,-252.5,0.00032876,2]
[322146922,1712849454381,-500.0,0.00032876,2]
[322146923,1712849454390,-500.0,0.00032876,2]
[322146924,1712849454400,-500.0,0.00032876,2]
[322146925,1712849454410,-500.0,0.00032876,2]
[322146926,1712849454419,-500.0,0.00032876,2]
[322146927,1712849454432,-4938.64,0.00032876,2]
[322146928,1712849454441,-2319.74,0.00032876,2]
[322146929,1712849454450,-1738.69,0.00032876,2]
[322146930,1712849454460,-18839.22,0.00032876,2]
[322146931,1712849454471,-500.0,0.00032876,2]
[322146932,1712849454480,-1502.39,0.00032876,2]
[322146933,1712849454490,-500.0,0.00032876,2]
[322146934,1712849454500,-589.46255528,0.00032876,2]
[322146935,1712849454512,-455.7809499,0.00032876,2]
[322146936,1712849454522,-500.0,0.00032876,2]
[322146937,1712849454531,-500.0,0.00032876,2]
[322146938,1712849454541,-4651.2,0.00032876,2]
[322146939,1712849454551,-884.48,0.00032876,2]
[322146940,1712849454561,-538.52,0.00032876,2]
[322146941,1712849454571,-500.0,0.00032876,2]
[322146942,1712849454580,-500.0,0.00032876,2]
[322146943,1712849454590,-500.0,0.00032876,2]
[322146944,1712849454600,-500.0,0.00032876,2]
[322146945,1712849454609,-14438.29,0.00032876,2]
[322146946,1712849454618,-500.0,0.00032876,2]
[322146947,1712849454628,-955.34,0.00032876,2]
[322146948,1712849454637,-509.43366942,0.00032876,2]
[322146949,1712849454646,-500.0,0.00032876,2]
[322146950,1712849454656,-500.0,0.00032876,2]
[322146951,1712849454666,-2386.05,0.00032876,2]
[322146952,1712849454675,-4065.6,0.00032876,2]
[322146953,1712849454686,-2346.9,0.00032876,2]
[322146954,1712849454696,-500.0,0.00032876,2]
[322146955,1712849454707,-1575.89,0.00032876,2]
[322146956,1712849454716,-4897.81,0.00032876,2]
[322146957,1712849454726,-4260.9,0.00032876,2]
[322146958,1712849454736,-500.0,0.00032876,2]
[322146959,1712849454745,-13641.18,0.00032876,2]
[322146960,1712849454757,-500.0,0.00032876,2]
[322146961,1712849454766,-3424.08,0.00032876,2]
[322146962,1712849454775,-500.0,0.00032876,2]
[322146963,1712849454785,-7023.3,0.00032876,2]
[322146964,1712849454794,-1079.3,0.00032876,2]
[322146965,1712849454805,-500.0,0.00032876,2]
[322146966,1712849454815,-1612.12,0.00032876,2]
[322146967,1712849454825,-1634.68,0.00032876,2]
[322146968,1712849454836,-471.8429932,0.00032876,2]
[322146969,1712849454846,-500.0,0.00032876,2]
[322146970,1712849454855,-4733.4,0.00032876,2]
[322146971,1712849454866,-1656.55,0.00032876,2]
[322146972,1712849454876,-958.41,0.00032876,2]
[322146973,1712849454886,-500.0,0.00032876,2]
[322146974,1712849454897,-8721.04,0.00032876,2]
[322146975,1712849454907,-2462.86,0.00032876,2]
[322146976,1712849454917,-500.0,0.00032876,2]
[322146977,1712849454928,-1423.38,0.00032876,2]
[322146978,1712849454939,-2495.62,0.00032876,2]
[322146979,1712849454949,-500.0,0.00032876,2]
[322146980,1712849454959,-1689.93,0.00032876,2]
[322146981,1712849454970,-500.0,0.00032876,2]
[322146982,1712849454979,-500.0,0.00032876,2]
[322146983,1712849454989,-500.0,0.00032876,2]
[322146984,1712849454998,-206.12077054,0.00032876,2]
[322146985,1712849455010,-500.0,0.00032876,2]
[322146986,1712849455020,-725.93,0.00032876,2]
[322146987,1712849455029,-3881.99,0.00032876,2]
[322146988,1712849455039,-500.0,0.00032876,2]
[322146989,1712849455049,-3989.67,0.00032876,2]
[322146990,1712849455058,-500.0,0.00032876,2]
[322146991,1712849455067,-500.0,0.00032876,2]
[322146992,1712849455077,-500.0,0.00032876,2]
[322146993,1712849455086,-1649.93,0.00032876,2]
[322146994,1712849455097,-437.69382043,0.00032876,2]
[322146995,1712849455107,-4412.2,0.00032876,2]
[322146996,1712849455118,-33457.95,0.00032876,2]
[322146997,1712849455128,-500.0,0.00032876,2]
[322146998,1712849455137,-1234.8,0.00032876,2]
[322146999,1712849455148,-462.64040567,0.00032876,2]
[322147000,1712849455159,-546.67,0.00032876,2]
[322147001,1712849455169,-500.0,0.00032876,2]
[322147002,1712849455179,-2433.03,0.00032876,2]
[322147003,1712849455189,-500.0,0.00032876,2]
[322147004,1712849455200,-1158.1,0.00032876,2]
[322147005,1712849455209,-7070.85,0.00032876,2]
[322147006,1712849455218,-1815.62,0.00032876,2]
[322147007,1712849455229,-1951.36,0.00032876,2]
[322147008,1712849455238,-500.0,0.00032876,2]
[322147009,1712849455249,-5575.47,0.00032876,2]
[322147010,1712849455261,-8699.63,0.00032876,2]
[322147011,1712849455271,-2626.64,0.00032876,2]
[322147012,1712849455281,-500.0,0.00032876,2]
[322147013,1712849455290,-876.89,0.00032876,2]
[322147014,1712849455299,-1226.25,0.00032876,2]
[322147015,1712849455310,-500.0,0.00032876,2]
[322147016,1712849455320,-500.0,0.00032876,2]
[322147017,1712849455329,-4011.18,0.00032876,2]
[322147018,1712849455339,-500.0,0.00032876,2]
[322147019,1712849455349,-767.25,0.00032876,2]
[322147020,1712849455359,-500.0,0.00032876,2]
[322147021,1712849455369,-500.0,0.00032876,2]
[322147022,1712849455379,-13880.32,0.00032876,2]
[322147023,1712849455389,-1690.7,0.00032876,2]
[322147024,1712849455399,-4689.87,0.00032876,2]
[322147025,1712849455410,-500.0,0.00032876,2]
[322147026,1712849455423,-500.0,0.00032876,2]
[322147027,1712849455433,-500.0,0.00032876,2]
[322147028,1712849455443,-500.0,0.00032876,2]
[322147029,1712849455453,-7120.99,0.00032876,2]
[322147030,1712849455464,-500.0,0.00032876,2]
[322147031,1712849455474,-1842.35,0.00032876,2]
[322147032,1712849455484,-500.0,0.00032876,2]
[322147033,1712849455494,-526.57,0.00032876,2]
[322147034,1712849455505,-5362.17,0.00032876,2]
[322147035,1712849455514,-4240.71,0.00032876,2]
[322147036,1712849455523,-500.0,0.00032876,2]
[322147037,1712849455531,-500.0,0.00032876,2]
[322147038,1712849455541,-2526.7,0.00032876,2]
[322147039,1712849455550,-500.0,0.00032876,2]